bitfinex/quotes_BTCUSD_20250127
["timestamp","ask_amount","ask_price","bid_price","bid_amount"]
[1737953514609,1.62934742,100450.0,100440.0,0.06386641]
[1737953514810,1.65634742,100450.0,100440.0,0.06486641]
[1737953515026,1.63534742,100450.0,100440.0,0.06486641]
[1737953515449,1.63834742,100450.0,100440.0,0.06486641]
[1737953515657,1.63134742,100450.0,100440.0,0.06386641]
[1737953515933,1.62834742,100450.0,100440.0,0.06486641]
[1737953516141,1.63734742,100450.0,100440.0,0.06486641]
[1737953516370,1.64234742,100450.0,100440.0,0.06486641]
[1737953516763,1.29328262,100450.0,100440.0,0.06486641]
[1737953517114,1.21634261,100450.0,100440.0,0.06386641]
[1737953517341,1.1940776,100450.0,100440.0,0.06386641]
[1737953517545,1.1980776,100450.0,100440.0,0.06486641]
[1737953517758,1.2180776,100450.0,100440.0,0.06486641]
[1737953518025,1.2230776,100450.0,100440.0,0.06486641]
[1737953518227,1.2230376,100450.0,100440.0,0.06486641]
[1737953518437,1.20607761,100450.0,100440.0,0.06386641]
[1737953518642,1.22407761,100450.0,100440.0,0.06386641]
[1737953518857,2.15956664,100450.0,100440.0,0.06486641]
[1737953519704,1.85956664,100450.0,100440.0,0.06486641]
[1737953519915,2.15556664,100450.0,100440.0,0.06486641]
[1737953520479,1.85556664,100450.0,100440.0,0.06486641]
[1737953520964,1.20107761,100450.0,100440.0,0.06386641]
[1737953521144,1.1890376,100450.0,100440.0,0.06386641]
[1737953521380,1.74366694,100450.0,100440.0,0.06386641]
[1737953521577,1.74666694,100450.0,100440.0,0.06386641]
[1737953521783,1.75566694,100450.0,100440.0,0.06486641]
[1737953521989,1.85156694,100450.0,100440.0,0.06386641]
[1737953522399,1.86056694,100450.0,100440.0,0.06486641]
[1737953523218,2.16056694,100450.0,100440.0,0.06486641]
[1737953523958,1.86056694,100450.0,100440.0,0.06486641]
[1737953524356,1.88056694,100450.0,100440.0,0.06486641]
[1737953524585,1.78362693,100450.0,100440.0,0.06486641]
[1737953524785,1.75566694,100450.0,100440.0,0.06486641]
[1737953524966,1.86056694,100450.0,100440.0,0.06486641]
[1737953525176,1.77566694,100450.0,100440.0,0.06486641]
[1737953525390,1.43456683,100450.0,100440.0,0.06486641]
[1737953525593,1.40660684,100450.0,100440.0,0.06486641]
[1737953525799,1.77566624,100450.0,100440.0,0.06486641]
[1737953526000,1.86056624,100450.0,100440.0,0.06486641]
[1737953528767,1.46884641,100450.0,100440.0,0.06486641]
[1737953528972,1.3289064,100450.0,100440.0,0.06486641]
[1737953529399,1.3519064,100450.0,100440.0,0.06486641]
[1737953529607,1.3719064,100450.0,100440.0,0.06486641]
[1737953530032,1.81792441,100450.0,100440.0,0.06486641]
[1737953531617,1.91364441,100450.0,100440.0,0.06486641]
[1737953531826,1.4583464,100450.0,100440.0,0.06486641]
[1737953532006,1.91350731,100450.0,100440.0,0.06486641]
[1737953532233,1.9214673,100450.0,100440.0,0.06486641]
[1737953532448,1.91350731,100450.0,100440.0,0.06486641]
[1737953532629,1.90434731,100450.0,100440.0,0.06486641]
[1737953532803,1.42738641,100450.0,100440.0,0.06486641]
[1737953533060,1.43654641,100450.0,100440.0,0.06486641]
[1737953534081,1.4675064,100450.0,100440.0,0.06486641]
[1737953534285,1.56444641,100450.0,100440.0,0.06486641]
[1737953534522,1.91351061,100450.0,100440.0,0.06486641]
[1737953536613,1.89351061,100450.0,100440.0,0.06486641]
[1737953538986,3.39881061,100450.0,100440.0,0.06486641]
[1737953540239,3.39881061,100450.0,100440.0,0.06086641]
[1737953540483,3.09031061,100450.0,100440.0,0.06086641]
[1737953540689,2.01991061,100450.0,100440.0,0.06086641]
[1737953540910,1.89351061,100450.0,100440.0,0.06086641]
[1737953541159,1.91351061,100450.0,100440.0,0.06086641]
[1737953541552,1.88435061,100450.0,100440.0,0.06086641]
[1737953541778,1.3324776,100450.0,100440.0,0.06086641]
[1737953541988,1.3186376,100450.0,100440.0,0.06086641]
[1737953542619,1.3416376,100450.0,100440.0,0.06086641]
[1737953543325,1.3324776,100450.0,100440.0,0.06086641]
[1737953543536,1.3416376,100450.0,100440.0,0.06086641]
[1737953544796,1.80861151,100450.0,100440.0,0.06086641]
[1737953545222,6.83861151,100450.0,100440.0,0.06086641]
[1737953547569,7.24351151,100450.0,100440.0,0.06086641]
[1737953548309,7.23851151,100450.0,100440.0,0.06086641]
[1737953548695,2.19551151,100450.0,100440.0,0.06186641]
[1737953548922,2.18651151,100450.0,100440.0,0.06086641]
[1737953549131,2.18851151,100450.0,100440.0,0.05986641]
[1737953549347,2.19551151,100450.0,100440.0,0.06086641]
[1737953549496,2.24157897,100450.0,100440.0,0.06086641]
[1737953549708,2.25057897,100450.0,100440.0,0.06086641]
[1737953549907,2.25057897,100450.0,100440.0,0.03787454]
[1737953550159,2.25057897,100450.0,100440.0,0.01285454]
[1737953550384,2.19551151,100450.0,100440.0,0.01285454]
[1737953551455,0.9521258,100430.0,100420.0,0.02012615]
[1737953551664,2.17192201,100430.0,100420.0,0.02012615]
[1737953551885,2.03641041,100430.0,100420.0,0.02012615]
[1737953552303,2.33641041,100430.0,100420.0,0.02012615]
[1737953552695,2.01944161,100430.0,100420.0,0.02012615]
[1737953552907,1.67927521,100430.0,100420.0,0.02012615]
[1737953553108,1.67927521,100430.0,100420.0,0.01012615]
[1737953553736,1.4924952,100430.0,100420.0,0.01012615]
[1737953553895,1.50241334,100430.0,100420.0,0.01012615]
[1737953554134,1.58401334,100430.0,100420.0,0.01012615]
[1737953554338,1.52341334,100430.0,100420.0,0.01012615]
[1737953554722,1.96948585,100430.0,100420.0,0.01012615]
[1737953554917,1.86754584,100430.0,100420.0,0.01012615]
[1737953555127,1.74000214,100430.0,100420.0,0.01012615]
[1737953555342,2.08517405,100430.0,100420.0,0.01012615]
[1737953555552,2.09313404,100430.0,100420.0,0.01012615]
[1737953555753,1.74400214,100430.0,100420.0,0.01012615]
[1737953555974,1.74000214,100430.0,100420.0,0.01012615]
[1737953556177,1.72184214,100430.0,100420.0,0.01012615]
[1737953556389,1.73996214,100430.0,100420.0,0.01012615]
[1737953556826,1.58509334,100430.0,100420.0,0.01012615]
[1737953557028,1.61263334,100430.0,100420.0,0.01012615]
[1737953557462,1.63788285,100430.0,100420.0,0.01012615]
[1737953557674,1.59268021,100430.0,100420.0,0.01012615]
[1737953558016,1.57972022,100430.0,100420.0,0.01012615]
[1737953558188,1.53290022,100430.0,100420.0,0.01012615]
[1737953558402,1.54602022,100430.0,100420.0,0.01012615]
[1737953558726,1.35522022,100430.0,100420.0,0.01012615]
[1737953559305,1.33222022,100430.0,100420.0,0.01012615]
[1737953559713,1.18286322,100430.0,100420.0,0.01012615]
[1737953559985,1.36318021,100430.0,100420.0,0.01012615]
[1737953560183,1.35522022,100430.0,100420.0,0.01012615]
[1737953562021,1.48904901,100430.0,100420.0,0.01012615]
[1737953562238,2.31012612,100430.0,100420.0,0.01012615]
[1737953562457,2.35842612,100430.0,100420.0,0.01012615]
[1737953563457,2.37842612,100430.0,100420.0,0.01012615]
[1737953564091,2.84722612,100430.0,100420.0,0.01012615]
[1737953564295,1.50648021,100430.0,100420.0,0.01012615]
[1737953564625,1.54637321,100430.0,100420.0,0.01012615]
[1737953564851,1.99244232,100430.0,100420.0,0.01012615]
[1737953565508,2.11831112,100430.0,100420.0,0.01012615]
[1737953565673,1.99244232,100430.0,100420.0,0.01012615]
[1737953565892,1.87550231,100430.0,100420.0,0.01012615]
[1737953566095,1.52637321,100430.0,100420.0,0.01012615]
[1737953568565,1.51725321,100430.0,100420.0,0.01012615]
[1737953568734,1.44341322,100430.0,100420.0,0.01012615]
[1737953568941,1.47701322,100430.0,100420.0,0.01012615]
[1737953569199,1.37211322,100430.0,100420.0,0.01012615]
[1737953569610,6.75044201,100430.0,100420.0,0.01012615]
[1737953569820,6.49857541,100430.0,100420.0,0.01012615]
[1737953570023,2.20220661,100430.0,100420.0,0.01012615]
[1737953571471,2.19720661,100430.0,100420.0,0.01012615]
[1737953572036,2.06970661,100430.0,100420.0,0.01012615]
[1737953572247,1.91870661,100430.0,100420.0,0.01012615]
[1737953573383,2.54431542,100430.0,100420.0,0.01012615]
[1737953573616,2.40124662,100430.0,100420.0,0.01012615]
[1737953573821,2.28874662,100430.0,100420.0,0.01012615]
[1737953573962,2.28758661,100430.0,100420.0,0.01012615]
[1737953574361,2.29670661,100430.0,100420.0,0.01012615]
[1737953574563,2.14030661,100430.0,100420.0,0.01012615]
[1737953574890,1.91870661,100430.0,100420.0,0.01012615]
[1737953575064,2.39161194,100430.0,100420.0,0.01012615]
[1737953575274,6.80077193,100430.0,100420.0,0.01012615]
[1737953575485,2.38637193,100430.0,100420.0,0.01012615]
[1737953575692,2.26050313,100430.0,100420.0,0.01012615]
[1737953575901,2.21960313,100430.0,100420.0,0.01012615]
[1737953576132,1.94458313,100430.0,100420.0,0.01012615]
[1737953576336,1.95370313,100430.0,100420.0,0.01012615]
[1737953576531,1.94458313,100430.0,100420.0,0.01012615]
[1737953576845,1.62456973,100430.0,100420.0,0.01012615]
[1737953577322,1.56957321,100430.0,100420.0,0.01012615]
[1737953577518,1.69544201,100430.0,100420.0,0.01012615]
[1737953577756,2.86821622,100430.0,100420.0,0.01012615]
[1737953577942,1.91870741,100430.0,100420.0,0.01012615]
[1737953578146,1.91074742,100430.0,100420.0,0.01012615]
[1737953578346,1.81380741,100430.0,100420.0,0.01012615]
[1737953578474,1.93967621,100430.0,100420.0,0.01012615]
[1737953578882,6.71697621,100430.0,100420.0,0.01012615]
[1737953579647,5.82097621,100430.0,100420.0,0.01012615]
[1737953579781,2.04457621,100430.0,100420.0,0.01012615]
[1737953580241,3.85987621,100430.0,100420.0,0.01012615]
[1737953580676,1.20863622,100430.0,100420.0,0.01012615]
[1737953581092,1.37507321,100430.0,100420.0,0.01012615]
[1737953581306,1.51846482,100430.0,100420.0,0.01012615]
[1737953581533,1.21775622,100430.0,100420.0,0.01012615]
[1737953582153,1.21775622,100430.0,100420.0,0.14731775]
[1737953582378,1.0429707,100430.0,100420.0,0.42459856]
[1737953582811,1.0338507,100430.0,100420.0,0.29872976]
[1737953583008,1.0028707,100430.0,100420.0,0.29872976]
[1737953583221,0.97270305,100430.0,100420.0,0.29872976]
[1737953583425,0.76358305,100430.0,100420.0,0.47409856]
[1737953583628,0.75520271,100430.0,100420.0,0.47409856]
[1737953583833,0.65385542,100430.0,100420.0,0.47409856]
[1737953584034,0.85120271,100430.0,100420.0,0.19681775]
[1737953584234,0.85520271,100430.0,100420.0,0.28713816]
[1737953584435,0.86420271,100430.0,100420.0,0.13776616]
[1737953584760,0.86020271,100430.0,100420.0,0.13776616]
[1737953584960,0.76220271,100430.0,100420.0,0.01012615]
[1737953585550,0.91220271,100430.0,100420.0,0.01012615]
[1737953585763,0.90320271,100430.0,100420.0,0.01012615]
[1737953585976,0.91020271,100430.0,100420.0,0.01012615]
[1737953586597,1.05955971,100430.0,100420.0,0.01012615]
[1737953586838,1.08255971,100430.0,100420.0,0.01012615]
[1737953587054,1.2163885,100430.0,100420.0,0.01012615]
[1737953587264,6.7178172,100430.0,100420.0,0.01012615]
[1737953587518,7.05665721,100430.0,100420.0,0.01012615]
[1737953587735,3.06635721,100430.0,100420.0,0.01012615]
[1737953588132,1.7126172,100430.0,100420.0,0.01012615]
[1737953588362,1.7156172,100430.0,100420.0,0.01012615]
[1737953588571,1.73558908,100430.0,100420.0,0.01012615]
[1737953588919,1.72858908,100430.0,100420.0,0.01012615]
[1737953589149,1.738575,100430.0,100420.0,0.01012615]
[1737953589360,1.747575,100430.0,100420.0,0.01012615]
[1737953589826,2.52981501,100430.0,100420.0,0.01012615]
[1737953590045,2.53381501,100430.0,100420.0,0.01012615]
[1737953590451,2.541775,100430.0,100420.0,0.01012615]
[1737953590879,1.74061501,100430.0,100420.0,0.01012615]
[1737953591089,1.22261751,100430.0,100420.0,0.01012615]
[1737953591298,1.38100338,100430.0,100420.0,0.01012615]
[1737953591507,1.40400338,100430.0,100420.0,0.01012615]
[1737953591725,1.41312338,100430.0,100420.0,0.01012615]
[1737953592440,1.41312338,100430.0,100420.0,0.00969701]
[1737953592441,1.6885663,100430.0,100420.0,0.00969701]
[1737953592655,7.20464961,100430.0,100420.0,0.00969701]
[1737953592831,6.17314961,100430.0,100420.0,0.00969701]
[1737953593224,3.77914961,100430.0,100420.0,0.00969701]
[1737953594112,0.84040079,100420.0,100410.0,0.25018388]
[1737953594321,7.19951061,100420.0,100410.0,0.25018388]
[1737953594541,3.53006267,100420.0,100410.0,0.25018388]
[1737953595152,3.53918267,100420.0,100410.0,0.25018388]
[1737953595290,2.89188267,100420.0,100410.0,0.25018388]
[1737953596123,2.89838128,100420.0,100410.0,0.25018388]
[1737953596343,2.24688267,100420.0,100410.0,0.25018388]
[1737953596528,7.00588267,100420.0,100410.0,0.25018388]
[1737953596732,2.58228578,100420.0,100410.0,0.25018388]
[1737953596967,1.99668578,100420.0,100410.0,0.25009639]
[1737953597170,1.33836188,100420.0,100410.0,0.25009639]
[1737953597324,1.14756188,100420.0,100410.0,0.27619219]
[1737953597524,1.07888188,100420.0,100410.0,0.27619219]
[1737953597729,1.06976188,100420.0,100410.0,0.25009639]
[1737953597971,1.07888188,100420.0,100410.0,0.25009639]
[1737953598570,1.22775068,100420.0,100410.0,0.25009639]
[1737953599053,1.10188188,100420.0,100410.0,0.25009639]
[1737953599274,2.24617037,100420.0,100410.0,0.25009639]
[1737953599641,2.26017037,100420.0,100410.0,0.25009639]
[1737953599846,7.37303038,100420.0,100410.0,0.25009639]
[1737953600339,2.69087037,100420.0,100410.0,0.25009639]
[1737953600501,2.68587037,100420.0,100410.0,0.25009639]
[1737953600740,2.69487037,100420.0,100410.0,0.25009639]
[1737953600932,2.69887037,100420.0,100410.0,0.25009639]
[1737953601173,2.68987037,100420.0,100410.0,0.25009639]
[1737953602260,2.68587037,100420.0,100410.0,0.25009639]
[1737953602490,2.12930157,100420.0,100410.0,0.25009639]
[1737953602686,6.78527037,100420.0,100410.0,0.25009639]
[1737953602901,6.59857037,100420.0,100410.0,0.25009639]
[1737953603080,2.32027037,100420.0,100410.0,0.25009639]
[1737953603298,6.17757037,100420.0,100410.0,0.25009639]
[1737953603496,5.86167037,100420.0,100410.0,0.25009639]
[1737953603746,5.83237037,100420.0,100410.0,0.25009639]
[1737953603950,2.70337037,100420.0,100410.0,0.25009639]
[1737953604157,2.72337037,100420.0,100410.0,0.25009639]
[1737953604362,2.76267037,100420.0,100410.0,0.25009639]
[1737953604684,2.76296773,100420.0,100410.0,0.25009639]
[1737953604884,2.79482774,100420.0,100410.0,0.25009639]
[1737953605112,2.81482774,100420.0,100410.0,0.25009639]
[1737953605924,2.76296773,100420.0,100410.0,0.25009639]
[1737953607271,2.74296773,100420.0,100410.0,0.25009639]
[1737953607604,2.35986773,100420.0,100410.0,0.25009639]
[1737953607737,2.56093894,100420.0,100410.0,0.25009639]
[1737953607955,1.80685124,100420.0,100410.0,0.25009639]
[1737953608802,1.22747924,100420.0,100410.0,0.25009639]
[1737953609043,1.18157924,100420.0,100410.0,0.25009639]
[1737953609241,1.17245924,100420.0,100410.0,0.25009639]
[1737953609437,1.18157924,100420.0,100410.0,0.25009639]
[1737953609664,1.17245924,100420.0,100410.0,0.25009639]
[1737953609870,1.17245924,100420.0,100410.0,0.23342972]
[1737953609871,1.18157924,100420.0,100410.0,0.23342972]
[1737953610077,1.14945924,100420.0,100410.0,0.23342972]
[1737953610299,0.95956672,100420.0,100410.0,0.23342972]
[1737953610439,0.96868672,100420.0,100410.0,0.23342972]
[1737953610638,0.86946672,100420.0,100410.0,0.26794286]
[1737953610851,0.87858672,100420.0,100410.0,0.54319866]
[1737953611067,0.87858672,100420.0,100410.0,0.41732986]
[1737953611678,0.77858672,100420.0,100410.0,0.23342972]
[1737953612084,0.92358672,100420.0,100410.0,0.23342972]
[1737953612424,1.98387881,100420.0,100410.0,0.23342972]
[1737953612633,2.06397881,100420.0,100410.0,0.23342972]
[1737953613035,2.05897881,100420.0,100410.0,0.23342972]
[1737953613469,3.45127881,100420.0,100410.0,0.23342972]
[1737953613653,2.88511882,100420.0,100410.0,0.23342972]
[1737953613874,2.89011882,100420.0,100410.0,0.23342972]
[1737953614037,2.88907881,100420.0,100410.0,0.23342972]
[1737953614271,2.88611882,100420.0,100410.0,0.23342972]
[1737953614443,2.89511882,100420.0,100410.0,0.23342972]
[1737953614656,1.39502752,100420.0,100410.0,0.23342972]
[1737953614869,1.29292752,100420.0,100410.0,0.23342972]
[1737953615066,1.29280752,100420.0,100410.0,0.23342972]
[1737953615266,0.94246672,100420.0,100410.0,0.23342972]
[1737953615476,1.56199472,100420.0,100410.0,0.23342972]
[1737953615857,1.44012592,100420.0,100410.0,0.23342972]
[1737953616252,1.29075392,100420.0,100410.0,0.23342972]
[1737953616534,0.91858672,100420.0,100410.0,0.23342972]
[1737953617468,0.92758672,100420.0,100410.0,0.23342972]
[1737953617673,0.91858672,100420.0,100410.0,0.23342972]
[1737953618014,0.92758672,100420.0,100410.0,0.23342972]
[1737953618331,0.95058672,100420.0,100410.0,0.23342972]
[1737953620413,1.57499492,100420.0,100410.0,0.23342972]
[1737953620613,1.67989492,100420.0,100410.0,0.23342972]
[1737953620900,1.57499492,100420.0,100410.0,0.23342972]
[1737953621109,0.95058672,100420.0,100410.0,0.23342972]
[1737953621492,1.44913732,100420.0,100410.0,0.23342972]
[1737953621710,1.87500612,100420.0,100410.0,0.23342972]
[1737953622693,1.97990612,100420.0,100410.0,0.23342972]
[1737953623298,3.83816611,100420.0,100410.0,0.23342972]
[1737953624777,2.24480612,100420.0,100410.0,0.23340972]
[1737953624945,2.20520612,100420.0,100410.0,0.23340972]
[1737953625523,2.22820612,100420.0,100410.0,0.23340972]
[1737953626556,1.85550612,100420.0,100410.0,0.23340972]
[1737953626764,1.47543412,100420.0,100410.0,0.23340972]
[1737953627184,0.92758672,100420.0,100410.0,0.23340972]
[1737953628246,1.05345552,100420.0,100410.0,0.23340972]
[1737953629753,1.22582752,100420.0,100410.0,0.23340972]
[1737953629977,1.65349102,100420.0,100410.0,0.23340972]
[1737953630189,1.65349102,100420.0,100410.0,0.10127627]
[1737953630190,2.08635101,100420.0,100410.0,0.10127627]
[1737953630398,2.08635101,100420.0,100400.0,0.0108616]
[1737953630399,0.422387,100410.0,100400.0,0.0108616]
[1737953630571,0.83549561,100410.0,100400.0,0.0108616]
[1737953630772,1.43160365,100410.0,100400.0,0.0108616]
[1737953631542,1.43460365,100410.0,100400.0,0.0108616]
[1737953631749,1.4437514,100410.0,100400.0,0.0108616]
[1737953631953,6.6196202,100410.0,100400.0,0.0108616]
[1737953632981,6.3669202,100410.0,100400.0,0.0108616]
[1737953633884,6.0289202,100410.0,100400.0,0.0108616]
[1737953634282,6.0146202,100410.0,100400.0,0.0108616]
[1737953635629,1.2943644,100410.0,100400.0,0.0108616]
[1737953635828,1.4528714,100410.0,100400.0,0.0108616]
[1737953636475,1.5486314,100410.0,100400.0,0.0108616]
[1737953636693,1.55845335,100410.0,100400.0,0.0108616]
[1737953638116,1.57832941,100410.0,100400.0,0.0108616]
[1737953639314,1.42894241,100410.0,100400.0,0.0108616]
[1737953639950,1.41982241,100410.0,100400.0,0.0108616]
[1737953640160,1.57832941,100410.0,100400.0,0.0108616]
[1737953641792,1.42894241,100410.0,100400.0,0.0108616]
[1737953641990,1.70419821,100410.0,100400.0,0.0108616]
[1737953642200,7.10339771,100410.0,100400.0,0.0108616]
[1737953643925,7.09127771,100410.0,100400.0,0.0108616]
[1737953644134,7.06169771,100410.0,100400.0,0.0108616]
[1737953644261,7.01619771,100410.0,100400.0,0.0108616]
[1737953644874,7.00719771,100410.0,100400.0,0.0108616]
[1737953645099,7.2259577,100410.0,100400.0,0.0108616]
[1737953645500,7.3117577,100410.0,100400.0,0.0108616]
[1737953646315,7.1497577,100410.0,100400.0,0.0108616]
[1737953646548,7.1161577,100410.0,100400.0,0.0108616]
[1737953646736,5.7804577,100410.0,100400.0,0.0108616]
[1737953646951,5.66169771,100410.0,100400.0,0.0108616]
[1737953647151,3.42169771,100410.0,100400.0,0.0108616]
[1737953647352,3.29429771,100410.0,100400.0,0.0108616]
[1737953648133,3.21639771,100410.0,100400.0,0.0108616]
[1737953648336,3.2443577,100410.0,100400.0,0.0108616]
[1737953648541,3.22739771,100410.0,100400.0,0.0108616]
[1737953648807,2.8895577,100410.0,100400.0,0.0108616]
[1737953650491,2.8945577,100410.0,100400.0,0.0108616]
[1737953651120,2.89485506,100410.0,100400.0,0.0108616]
[1737953652177,2.88573506,100410.0,100400.0,0.0108616]
[1737953652382,2.89481506,100410.0,100400.0,0.0108616]
[1737953654451,2.93472006,100410.0,100400.0,0.0108616]
[1737953656677,0.799202,100400.0,100390.0,0.27251483]
[1737953656875,2.54215609,100400.0,100390.0,0.21222783]
[1737953657231,2.96510474,100400.0,100390.0,0.21222783]
[1737953657399,0.90058474,100400.0,100390.0,0.21222783]
[1737953657643,1.00548474,100400.0,100390.0,0.21222783]
[1737953657857,0.90558474,100400.0,100390.0,0.21222783]
[1737953658261,0.89650474,100400.0,100390.0,0.21222783]
[1737953658475,0.90958474,100400.0,100390.0,0.21222783]
[1737953658685,0.90058474,100400.0,100390.0,0.21222783]
[1737953659032,0.90958474,100400.0,100390.0,0.21222783]
[1737953659911,0.91358474,100400.0,100390.0,0.21222783]
[1737953660921,0.91348474,100400.0,100390.0,0.21222783]
[1737953662171,0.88327594,100400.0,100390.0,0.21222783]
[1737953662532,1.00914474,100400.0,100390.0,0.21222783]
[1737953662734,1.00006474,100400.0,100390.0,0.21222783]
[1737953662948,1.00006474,100400.0,100390.0,0.21426784]
[1737953662949,0.87419594,100400.0,100390.0,0.21426784]
[1737953663142,0.87419594,100400.0,100390.0,0.29726784]
[1737953663143,0.88327594,100400.0,100390.0,0.29726784]
[1737953663376,0.88101729,100400.0,100390.0,0.29726784]
[1737953663743,0.88101729,100400.0,100390.0,0.44668484]
[1737953663975,0.83121729,100400.0,100390.0,0.54403213]
[1737953664844,0.83121729,100400.0,100390.0,0.39461513]
[1737953665538,0.83121729,100400.0,100390.0,0.54403213]
[1737953666046,0.98121729,100400.0,100390.0,0.54403213]
[1737953666251,0.82637729,100400.0,100390.0,0.54403213]
[1737953666477,0.83545729,100400.0,100390.0,0.54403213]
[1737953667306,0.63411,100400.0,100390.0,0.54403213]
[1737953667514,0.62503,100400.0,100390.0,0.62293742]
[1737953667716,0.62603,100400.0,100390.0,0.62293742]
[1737953667916,0.51703,100400.0,100390.0,0.74880622]
[1737953668200,0.52003,100400.0,100390.0,0.74880622]
[1737953668353,0.51993,100400.0,100390.0,0.75880622]
[1737953669577,0.51993,100400.0,100390.0,0.63293742]
[1737953670865,0.51993,100400.0,100390.0,0.71230622]
[1737953670866,0.46993,100400.0,100390.0,0.71230622]
[1737953671002,0.46863,100400.0,100390.0,0.71230622]
[1737953671209,0.04054511,100410.0,100400.0,0.16144201]
[1737953671407,0.49842511,100410.0,100400.0,0.3846581]
[1737953672511,0.49842511,100410.0,100400.0,0.4235581]
[1737953673359,0.49842511,100410.0,100400.0,0.31621081]
[1737953673583,0.59842511,100410.0,100400.0,0.19034201]
[1737953673991,0.59842511,100410.0,100400.0,0.19134201]
[1737953674212,0.49842511,100410.0,100400.0,0.19134201]
[1737953674340,0.53772511,100410.0,100400.0,0.19134201]
[1737953674556,0.65626511,100410.0,100400.0,0.19034201]
[1737953674755,0.65726511,100410.0,100400.0,0.19634201]
[1737953675157,0.65726511,100410.0,100400.0,0.20034201]
[1737953679281,0.80726511,100410.0,100400.0,0.16144201]
[1737953679699,0.65726511,100410.0,100400.0,0.16144201]
[1737953680127,0.65726511,100410.0,100400.0,0.20034201]
[1737953680910,0.55726511,100410.0,100400.0,0.32621081]
[1737953681175,0.55726511,100410.0,100400.0,0.33621081]
[1737953682466,0.55726511,100410.0,100400.0,0.6065581]
[1737953683222,0.53233808,100410.0,100400.0,0.6265581]
[1737953684687,0.49303808,100410.0,100400.0,0.6265581]
[1737953684897,0.49303808,100410.0,100400.0,0.783345]
[1737953685103,0.49303808,100410.0,100400.0,0.6574762]
[1737953686102,0.49333544,100410.0,100400.0,0.6574762]
[1737953687144,0.41856677,100410.0,100400.0,0.6574762]
[1737953687371,0.00029736,100420.0,100410.0,0.24332701]
[1737953687571,0.00039612,100420.0,100410.0,0.5924119]
[1737953688209,1.2e-07,100420.0,100410.0,0.5924119]
[1737953688409,4.8e-07,100430.0,100420.0,0.24331201]
[1737953688721,0.00029758,100450.0,100440.0,0.20028201]
[1737953688925,0.49807758,100450.0,100440.0,0.32615081]
[1737953689875,0.49807758,100450.0,100440.0,0.20028201]
[1737953690117,0.49807758,100450.0,100440.0,0.4234981]
[1737953690590,0.49807758,100450.0,100440.0,0.5743669]
[1737953690795,0.51661758,100450.0,100440.0,0.4484981]
[1737953691051,0.51661758,100450.0,100440.0,0.4464981]
[1737953691466,0.51661758,100450.0,100440.0,0.4474981]
[1737953692004,0.51661758,100450.0,100440.0,0.4524981]
[1737953692614,0.51661758,100450.0,100440.0,0.46257503]
[1737953692814,0.51661758,100450.0,100440.0,0.60736012]
[1737953693024,0.51661758,100450.0,100440.0,0.61036012]
[1737953693222,0.51661758,100450.0,100440.0,0.48449132]
[1737953693487,0.51612852,100450.0,100440.0,0.48449132]
[1737953694932,0.51612852,100450.0,100440.0,0.46149132]
[1737953695146,0.51612852,100450.0,100440.0,0.19937523]
[1737953695864,0.51612852,100450.0,100440.0,0.19437523]
[1737953696239,0.51612852,100450.0,100440.0,0.19737523]
[1737953696450,0.51612852,100450.0,100440.0,0.19437523]
[1737953696951,0.51612852,100450.0,100440.0,0.19137523]
[1737953697384,0.51612852,100450.0,100440.0,0.19337523]
[1737953697594,0.51612852,100450.0,100440.0,0.31924403]
[1737953697767,0.51627012,100450.0,100440.0,0.43759132]
[1737953698042,0.51627012,100450.0,100440.0,0.46846934]
[1737953698213,0.51627012,100450.0,100440.0,0.46946934]
[1737953698919,0.51627012,100450.0,100440.0,0.47246934]
[1737953699329,0.51627012,100450.0,100440.0,0.46946934]
[1737953699466,0.51627012,100450.0,100440.0,0.47546934]
[1737953699676,0.51727012,100450.0,100440.0,0.47446934]
[1737953699949,0.51727012,100450.0,100440.0,0.47646934]
[1737953700576,0.51727012,100450.0,100440.0,0.47446934]
[1737953700774,0.51727012,100450.0,100440.0,0.77333814]
[1737953701199,0.51727012,100450.0,100440.0,0.81223814]
[1737953701606,0.51727012,100450.0,100440.0,0.68636934]
[1737953702210,0.51727012,100450.0,100440.0,0.81223814]
[1737953703478,0.39270016,100450.0,100440.0,0.81223814]
[1737953703886,0.35288016,100450.0,100440.0,0.81223814]
[1737953704119,0.19360016,100450.0,100440.0,1.67423814]
[1737953704328,0.385541,100510.0,100500.0,0.15129301]
[1737953704329,0.09568,100510.0,100500.0,0.15129301]
[1737953704696,0.12838,100510.0,100500.0,0.15129301]
[1737953704860,0.72321729,100510.0,100500.0,0.15129301]
[1737953705065,0.62587,100510.0,100500.0,0.16129301]
[1737953705272,0.62587,100510.0,100500.0,0.28716181]
[1737953705474,0.62601834,100510.0,100500.0,0.28716181]
[1737953705807,0.53033834,100510.0,100500.0,0.28716181]
[1737953706009,0.53033834,100510.0,100500.0,0.31363399]
[1737953706214,0.53433834,100510.0,100500.0,0.31363399]
[1737953706381,0.53433834,100510.0,100500.0,0.3845091]
[1737953707112,0.53533834,100510.0,100500.0,0.3845091]
[1737953707953,0.61333834,100510.0,100500.0,0.15129301]
[1737953708218,0.71333834,100510.0,100500.0,0.15129301]
[1737953708355,0.7155269,100510.0,100500.0,0.15129301]
[1737953708756,0.81287419,100510.0,100500.0,0.15129301]
[1737953709778,0.81201569,100510.0,100500.0,0.15129301]
[1737953709975,0.98358449,100510.0,100500.0,0.00204001]
[1737953710404,0.98758449,100510.0,100500.0,0.00204001]
[1737953710598,0.86171569,100510.0,100500.0,0.00204001]
[1737953711025,0.98658449,100510.0,100500.0,0.00204001]
[1737953711235,1.13658449,100510.0,100500.0,0.00204001]
[1737953711439,1.01975569,100510.0,100500.0,0.15129301]
[1737953712003,1.01071569,100510.0,100500.0,0.15129301]
[1737953712208,1.11575569,100510.0,100500.0,0.15129301]
[1737953712408,1.11975569,100510.0,100500.0,0.15129301]
[1737953712733,1.01975569,100510.0,100500.0,0.15129301]
[1737953712893,1.02075569,100510.0,100500.0,0.15129301]
[1737953713089,1.01171569,100510.0,100500.0,0.15129301]
[1737953713334,1.02075569,100510.0,100500.0,0.15129301]
[1737953713529,0.87075569,100510.0,100500.0,0.15129301]
[1737953713776,0.77075569,100510.0,100500.0,0.15129301]
[1737953713950,0.6919484,100510.0,100500.0,0.15129301]
[1737953714355,0.6172285,100510.0,100500.0,0.15129301]
[1737953714551,0.6162285,100510.0,100500.0,0.15129301]
[1737953714917,0.6500285,100510.0,100500.0,0.15129301]
[1737953715806,0.6460285,100510.0,100500.0,0.15129301]
[1737953716008,0.5102885,100510.0,100500.0,0.16129301]
[1737953716307,0.5102885,100510.0,100500.0,0.15129301]
[1737953718177,0.5102885,100510.0,100500.0,0.27716181]
[1737953718377,0.5102885,100510.0,100500.0,0.41540251]
[1737953718579,0.5102885,100510.0,100500.0,1.08287131]
[1737953718806,0.5102885,100510.0,100500.0,0.95700251]
[1737953719209,0.5102885,100510.0,100500.0,0.72378642]
[1737953719386,0.5102885,100510.0,100500.0,0.69289301]
[1737953719786,0.5933885,100510.0,100500.0,0.69289301]
[1737953721185,0.5102885,100510.0,100500.0,0.82876181]
[1737953721600,0.5102885,100510.0,100500.0,1.25588875]
[1737953721601,0.50680626,100510.0,100500.0,1.25588875]
[1737953721814,0.50680626,100510.0,100500.0,1.31478875]